bitfinex/quotes_ETHUSD_20240718
["timestamp","ask_amount","ask_price","bid_price","bid_amount"]
[1721334608121,3.3387,3412.7,3412.2,5.93063]
[1721334608833,6.59949644,3419.7,3412.2,5.93063]
[1721334608834,0.1463667,3414.2,3413.4,2.92958]
[1721334608973,0.1463667,3414.2,3413.5,3.0]
[1721334608974,1.18823795,3414.0,3413.5,3.0]
[1721334609174,0.34623795,3414.0,3413.5,3.0]
[1721334609921,0.842,3413.9,3413.5,3.0]
[1721334610088,0.34623795,3414.0,3413.5,3.0]
[1721334610475,0.34623795,3414.0,3413.6,2.92943]
[1721334610679,1.18823795,3414.0,3413.5,3.0]
[1721334610990,0.34623795,3414.0,3413.5,5.92949]
[1721334611203,0.34623795,3414.0,3413.6,2.92944]
[1721334611608,0.34623795,3414.0,3413.8,2.92923]
[1721334614902,1.18823795,3414.0,3413.8,2.92923]
[1721334615119,0.34623795,3414.0,3413.8,2.92923]
[1721334616864,1.18823795,3414.0,3413.8,2.92923]
[1721334617017,0.34623795,3414.0,3413.8,2.92923]
[1721334620873,1.18823795,3414.0,3413.8,5.85845]
[1721334621082,0.34623795,3414.0,3413.8,2.92922]
[1721334621540,0.34623795,3414.0,3413.9,2.9292]
[1721334627879,0.34623795,3414.0,3413.7,2.92929]
[1721334628037,0.34623795,3414.0,3413.8,2.92927]
[1721334630903,0.34623795,3414.0,3413.9,2.9292]
[1721334635594,0.34623795,3414.0,3413.9,5.8584]
[1721334641791,0.34623795,3414.0,3413.9,2.9292]
[1721334643178,0.34623795,3414.0,3413.5,3.0]
[1721334643373,2.70413795,3414.0,3413.6,2.92945]
[1721334643701,2.70413795,3414.0,3413.6,5.92945]
[1721334645464,0.34623795,3414.0,3413.8,2.92927]
[1721334646581,0.34623795,3414.0,3413.9,5.3134]
[1721334647969,0.34623795,3414.0,3413.9,2.9292]
[1721334649178,0.34623795,3414.0,3413.7,2.92931]
[1721334649384,0.34623795,3414.0,3413.8,5.92924]
[1721334649671,0.34623795,3414.0,3413.8,2.92924]
[1721334651601,0.34623795,3414.0,3413.9,2.9292]
[1721334653505,0.34623795,3414.0,3413.9,3.94746609]
[1721334654004,0.34623795,3414.0,3413.9,6.94746609]
[1721334654371,0.34623795,3414.0,3413.9,9.08817586]
[1721334654910,0.34623795,3414.0,3413.9,9.08816762]
[1721334656803,0.34623795,3414.0,3413.9,6.15896762]
[1721334657631,0.34623795,3414.0,3413.9,5.54565557]
[1721334657807,0.34623795,3414.0,3413.9,6.15896762]
[1721334658008,0.34623795,3414.0,3413.9,5.54569345]
[1721334659427,0.34623795,3414.0,3413.9,5.54569536]
[1721334660824,0.34623795,3414.0,3413.9,3.0]
[1721334661029,0.34623795,3414.0,3413.9,2.54569788]
[1721334661198,0.34623795,3414.0,3413.9,5.54569788]
[1721334661399,0.34623795,3414.0,3413.9,5.54572467]
[1721334662019,0.34623795,3414.0,3413.9,5.5457219]
[1721334662327,0.34623795,3414.0,3413.9,6.15903395]
[1721334662496,0.34623795,3414.0,3413.9,5.5457219]
[1721334663522,0.34623795,3414.0,3413.9,11.48773395]
[1721334663736,0.34623795,3414.0,3413.9,11.48767595]
[1721334664403,0.34623795,3414.0,3413.9,6.15897595]
[1721334665211,0.34623795,3414.0,3413.9,5.5456639]
[1721334665417,0.34623795,3414.0,3413.9,6.15897595]
[1721334666840,0.34623795,3414.0,3413.9,6.15900488]
[1721334669960,0.34623795,3414.0,3413.9,3.61331205]
[1721334670175,0.34623795,3414.0,3413.9,6.15900317]
[1721334670353,0.34623795,3414.0,3413.9,3.61331205]
[1721334670539,0.34623795,3414.0,3413.9,6.15900248]
[1721334670926,0.34623795,3414.0,3413.9,6.15900477]
[1721334671361,0.34623795,3414.0,3413.6,0.61331205]
[1721334671362,1.03521294,3414.0,3413.6,0.61331205]
[1721334671560,0.34623795,3414.0,3413.7,3.15928195]
[1721334671761,0.34623795,3414.0,3413.8,5.54597262]
[1721334671929,0.34623795,3414.0,3413.9,1.01838796]
[1721334672138,0.34623795,3414.0,3413.9,2.54590888]
[1721334673236,0.34623795,3414.0,3413.9,2.54578071]
[1721334675375,0.34623795,3414.0,3413.9,1.01831228]
[1721334676345,0.34623795,3414.0,3413.7,0.61331205]
[1721334676644,0.34623795,3414.0,3413.8,2.54591169]
[1721334676966,0.34623795,3414.0,3413.9,1.01836461]
[1721334678644,0.34623795,3414.0,3413.6,3.61331205]
[1721334678879,0.34623795,3414.0,3413.7,2.54598753]
[1721334679074,0.34623795,3414.0,3413.8,5.54598753]
[1721334679253,0.34623795,3414.0,3413.9,1.01839501]
[1721334679443,0.34623795,3414.0,3413.6,3.61331205]
[1721334679644,0.34623795,3414.0,3413.7,2.5459529]
[1721334679843,0.34623795,3414.0,3413.8,5.5459529]
[1721334680046,0.34623795,3414.0,3413.6,3.61331205]
[1721334680251,0.34623795,3414.0,3413.7,2.54597746]
[1721334680454,0.34623795,3414.0,3413.8,5.54597746]
[1721334680688,0.34623795,3414.0,3413.8,3.0]
[1721334680853,0.34623795,3414.0,3413.7,3.0]
[1721334681051,0.34623795,3414.0,3413.8,2.5459516]
[1721334681291,0.34623795,3414.0,3413.7,3.0]
[1721334681489,0.34623795,3414.0,3413.8,2.54596186]
[1721334681794,0.34623795,3414.0,3413.7,3.0]
[1721334682090,0.34623795,3414.0,3413.8,1.0184029]
[1721334682267,0.34623795,3414.0,3413.6,0.61331205]
[1721334682467,0.34623795,3414.0,3413.7,2.5460304]
[1721334682663,0.34623795,3414.0,3413.8,4.01841216]
[1721334682868,0.34623795,3414.0,3413.5,3.61331205]
[1721334683081,0.34623795,3414.0,3413.6,3.15935878]
[1721334683281,0.34623795,3414.0,3413.7,5.54604673]
[1721334683463,0.34623795,3414.0,3413.8,4.01841869]
[1721334683664,0.34623795,3414.0,3413.6,0.61331205]
[1721334683872,0.34623795,3414.0,3413.7,2.54599632]
[1721334684090,0.34623795,3414.0,3413.8,4.01839853]
[1721334684273,0.34623795,3414.0,3413.6,0.61331205]
[1721334684472,0.34623795,3414.0,3413.7,2.5460211]
[1721334684674,0.34623795,3414.0,3413.8,4.01840844]
[1721334684898,0.34623795,3414.0,3413.6,0.61331205]
[1721334685206,0.34623795,3414.0,3413.7,2.54601253]
[1721334685378,0.34623795,3414.0,3413.8,4.01840501]
[1721334685575,0.34623795,3414.0,3413.6,0.61331205]
[1721334685778,0.34623795,3414.0,3413.7,2.54599703]
[1721334685996,0.34623795,3414.0,3413.8,3.0]
[1721334686165,0.34623795,3414.0,3413.6,0.61331205]
[1721334686166,0.34623795,3414.0,3413.5,3.61331205]
[1721334686361,0.34623795,3414.0,3413.6,2.54601678]
[1721334686664,0.34623795,3414.0,3413.7,5.54601678]
[1721334686891,0.34623795,3414.0,3413.8,1.01840671]
[1721334687084,0.34623795,3414.0,3413.5,3.61331205]
[1721334687286,0.34623795,3414.0,3413.6,3.15932945]
[1721334687489,0.34623795,3414.0,3413.7,5.5460174]
[1721334687808,0.34623795,3414.0,3413.8,1.01840696]
[1721334687970,0.34623795,3414.0,3413.6,0.61331205]
[1721334688166,0.34623795,3414.0,3413.7,2.5459939]
[1721334688480,0.34623795,3414.0,3413.8,3.0]
[1721334688678,0.34623795,3414.0,3413.5,0.61331205]
[1721334688679,2.4303,3413.9,3413.5,3.0]
[1721334688896,2.4303,3413.9,3413.3,3.61331205]
[1721334689110,2.4303,3413.9,3413.4,2.54619625]
[1721334689263,2.4303,3413.9,3413.5,4.01848698]
[1721334689467,2.4303,3413.9,3413.6,3.0]
[1721334689770,2.4303,3413.9,3413.3,3.61331205]
[1721334690079,2.4303,3413.9,3413.4,2.54618733]
[1721334690274,2.4303,3413.9,3413.5,3.0]
[1721334690275,0.842,3413.8,3413.5,3.0]
[1721334690489,0.842,3413.8,3413.3,3.0]
[1721334690697,0.842,3413.8,3413.4,1.01848808]
[1721334690870,0.842,3413.8,3413.3,3.0]
[1721334691061,2.4303,3413.9,3413.3,3.0]
[1721334691472,2.4303,3413.9,3413.4,1.01849517]
[1721334691686,2.4303,3413.9,3413.3,3.0]
[1721334691917,0.842,3413.8,3413.4,1.01848613]
[1721334692072,2.4303,3413.9,3413.3,3.0]
[1721334692421,2.4303,3413.9,3413.4,1.01849176]
[1721334692624,2.4303,3413.9,3413.3,3.0]
[1721334692825,2.4303,3413.9,3413.4,2.54617911]
[1721334693035,2.4303,3413.9,3413.5,3.0]
[1721334693338,2.4303,3413.9,3413.3,3.0]
[1721334693490,2.4303,3413.9,3413.4,1.01847924]
[1721334693693,2.4303,3413.9,3413.3,3.0]
[1721334693694,2.4303,3413.9,3413.3,5.9297]
[1721334694045,2.4303,3413.9,3413.4,1.01846663]
[1721334694328,2.4303,3413.9,3413.3,5.9297]
[1721334694524,2.4303,3413.9,3413.4,1.01846502]
[1721334694830,2.4303,3413.9,3413.3,5.9297]
[1721334694989,2.4303,3413.9,3413.4,1.01846481]
[1721334695188,2.4303,3413.9,3413.3,5.9297]
[1721334695404,2.4303,3413.9,3413.4,1.01846495]
[1721334695688,2.4303,3413.9,3413.3,5.9297]
[1721334695916,2.4303,3413.9,3413.4,1.01847733]
[1721334696244,2.4303,3413.9,3413.3,5.9297]
[1721334696456,2.4303,3413.9,3413.3,3.0]
[1721334696609,3.2723,3413.9,3413.4,1.01846682]
[1721334696930,3.2723,3413.9,3413.3,3.0]
[1721334697092,0.45899841,3413.8,3413.3,3.0]
[1721334699036,0.45899841,3413.8,3413.4,1.01846171]
[1721334699329,0.45899841,3413.8,3413.3,3.0]
[1721334699526,0.45899841,3413.8,3413.4,1.01846055]
[1721334699749,0.45899841,3413.8,3413.3,3.0]
[1721334701092,0.45899841,3413.8,3413.4,1.01846896]
[1721334701293,0.45899841,3413.8,3413.3,3.0]
[1721334701495,0.45899841,3413.8,3413.4,1.01844407]
[1721334701732,0.45899841,3413.8,3413.3,3.0]
[1721334701733,0.45899841,3413.8,3413.5,1.01842929]
[1721334701927,0.45899841,3413.8,3413.3,6.54298205]
[1721334702338,0.45899841,3413.8,3413.4,2.54604255]
[1721334702629,0.45899841,3413.8,3413.5,6.94794702]
[1721334702838,0.34623795,3414.0,3413.5,5.92953]
[1721334704013,1.18823795,3414.0,3413.5,3.0]
[1721334704229,1.18823795,3414.0,3413.4,3.0]
[1721334704429,2.4745,3413.9,3413.5,1.01842256]
[1721334704637,2.4745,3413.9,3413.3,5.92971]
[1721334704942,0.842,3413.8,3413.4,2.54605823]
[1721334705145,2.4745,3413.9,3413.3,3.0]
[1721334705348,0.842,3413.8,3413.4,1.01844456]
[1721334705508,0.842,3413.8,3413.3,3.0]
[1721334705707,0.842,3413.8,3413.4,1.01845141]
[1721334706031,0.842,3413.8,3413.3,3.0]
[1721334706234,0.842,3413.8,3413.4,1.01844804]
[1721334706439,0.842,3413.8,3413.3,3.0]
[1721334706591,0.842,3413.8,3413.4,1.01844801]
[1721334706929,2.4745,3413.9,3413.3,3.0]
[1721334707095,2.4745,3413.9,3413.4,2.54609148]
[1721334707296,2.4745,3413.9,3413.5,3.0]
[1721334707496,2.4745,3413.9,3413.3,3.0]
[1721334707710,2.4745,3413.9,3413.4,2.54610275]
[1721334707906,2.4745,3413.9,3413.5,3.0]
[1721334708432,2.4745,3413.9,3413.4,3.0]
[1721334709130,2.4745,3413.9,3413.5,1.01843693]
[1721334709334,2.4745,3413.9,3413.4,3.0]
[1721334709741,2.4745,3413.9,3413.5,1.01843519]
[1721334710046,2.4745,3413.9,3413.4,3.0]
[1721334710223,2.4745,3413.9,3413.5,1.01843988]
[1721334710537,2.4745,3413.9,3413.4,3.0]
[1721334711320,2.4745,3413.9,3413.5,1.01843838]
[1721334711532,2.4745,3413.9,3413.4,3.0]
[1721334711717,2.4745,3413.9,3413.5,1.0184391]
[1721334711939,2.4745,3413.9,3413.4,3.0]
[1721334712259,2.4745,3413.9,3413.5,1.01843902]
[1721334712423,2.4745,3413.9,3413.4,3.0]
[1721334712623,2.4745,3413.9,3413.5,1.01843906]
[1721334712831,2.4745,3413.9,3413.4,3.0]
[1721334713064,2.4745,3413.9,3413.5,1.01843822]
[1721334713215,2.4745,3413.9,3413.4,3.0]
[1721334713416,2.4745,3413.9,3413.5,1.0184368]
[1721334713709,2.4745,3413.9,3413.4,3.0]
[1721334713939,2.4745,3413.9,3413.5,1.018436]
[1721334714253,2.4745,3413.9,3413.4,3.0]
[1721334714413,2.4745,3413.9,3413.5,1.01843637]
[1721334714613,2.4745,3413.9,3413.4,3.0]
[1721334714927,0.842,3413.8,3413.5,1.01845394]
[1721334715307,0.842,3413.8,3413.4,3.0]
[1721334715440,2.4745,3413.9,3413.5,1.01844343]
[1721334715643,2.4745,3413.9,3413.6,1.01842542]
[1721334715815,0.842,3413.8,3413.4,5.92962]
[1721334716018,2.4745,3413.9,3413.5,2.54606017]
[1721334716238,2.4745,3413.9,3413.6,3.0]
[1721334716514,2.4745,3413.9,3413.4,5.92962]
[1721334716747,2.4745,3413.9,3413.5,2.54606146]
[1721334716913,0.842,3413.8,3413.6,4.01842458]
[1721334717134,2.4745,3413.9,3413.5,3.0]
[1721334717934,0.842,3413.8,3413.3,3.0]
[1721334718133,2.4745,3413.9,3413.1,0.61331205]
[1721334718134,0.842,3413.4,3413.1,0.61331205]
[1721334718375,0.842,3413.2,3412.7,7.98331205]
[1721334718554,0.842,3412.8,3412.5,3.54366205]
[1721334718863,0.842,3412.8,3412.6,2.54675965]
[1721334719099,0.842,3412.8,3412.7,1.01870193]
[1721334719642,0.842,3412.8,3412.5,5.86067]
[1721334719866,0.842,3412.8,3412.6,1.0186988]
[1721334720083,0.842,3412.8,3412.5,2.93032]
[1721334720248,0.842,3413.0,3412.6,1.01869881]
[1721334720449,0.842,3413.0,3412.5,2.93032]
[1721334720686,2.3628,3413.1,3412.6,2.54674953]
[1721334720904,0.842,3413.0,3412.7,3.0]
[1721334721059,0.842,3413.0,3412.6,3.0]
[1721334723007,0.842,3413.0,3412.6,5.9303]
[1721334724094,2.3628,3413.1,3412.6,5.9303]
[1721334724475,2.3628,3413.1,3412.7,2.93021]
[1721334725177,2.4741,3413.3,3412.7,2.93021]
[1721334727191,0.842,3413.4,3412.7,2.93021]
[1721334728891,0.842,3413.2,3412.6,5.93031]
[1721334729597,2.4585,3413.1,3412.6,5.93031]
[1721334729895,0.842,3413.0,3412.6,5.93031]
[1721334730485,2.4585,3413.1,3412.6,5.93031]
[1721334731990,0.842,3413.0,3412.6,5.93031]
[1721334733779,2.4585,3413.1,3412.6,5.93031]
[1721334737397,2.4585,3413.1,3412.6,5.93026]
[1721334744878,2.4585,3413.1,3412.6,3.0]
[1721334745883,0.842,3413.2,3412.6,5.2933]
[1721334746503,0.842,3413.2,3412.6,8.2236]
[1721334746679,0.842,3413.4,3412.7,2.93017]
[1721334746873,0.842,3413.4,3412.8,2.93006]
[1721334747717,0.842,3413.2,3412.6,11.1538]
[1721334747877,0.842,3413.2,3412.7,2.93022]
[1721334749426,0.842,3413.2,3412.6,8.22353]
[1721334749622,0.842,3413.2,3412.7,2.93023]
[1721334751226,0.842,3413.4,3412.7,2.93023]
[1721334751524,0.842,3413.4,3412.8,5.93013]
[1721334751909,0.842,3413.4,3413.0,2.3545]
[1721334752112,0.842,3413.6,3413.0,2.3545]
[1721334754923,0.842,3413.4,3413.0,2.3545]
[1721334755110,0.842,3413.6,3413.0,2.3545]
[1721334755808,0.842,3413.4,3413.0,2.3545]
[1721334756028,0.842,3413.4,3412.8,3.0]
[1721334756215,0.842,3413.4,3412.9,1.01855537]
[1721334756404,0.842,3413.4,3412.8,5.93013]
[1721334756601,0.842,3413.2,3412.9,1.01855586]
[1721334756945,0.907835,3413.4,3412.6,3.0]
[1721334756946,0.842,3413.0,3412.6,3.0]
[1721334757623,0.842,3413.0,3412.7,1.01866187]
[1721334757831,0.842,3413.0,3412.6,3.0]
[1721334758019,0.842,3413.0,3412.7,1.01866009]
[1721334758221,0.842,3413.0,3412.6,3.0]
[1721334758403,0.842,3413.0,3412.7,1.01863775]
[1721334758605,0.842,3413.0,3412.6,5.9303]
[1721334758799,0.842,3413.2,3412.7,2.54659438]
[1721334759023,2.92946,3413.6,3412.9,5.39814]
[1721334759024,2.2841,3413.6,3412.9,5.39814]
[1721334759333,3.1261,3413.6,3412.9,5.39814]
[1721334759914,0.842,3413.4,3412.9,5.39814]
[1721334760114,3.1261,3413.6,3413.0,1.01854732]
[1721334760315,3.1261,3413.6,3412.9,5.39814]
[1721334760923,0.842,3413.4,3412.9,5.39814]
[1721334761125,0.842,3413.2,3412.8,3.0]
[1721334761328,2.2841,3413.1,3412.8,3.0]
[1721334762530,2.2841,3413.1,3412.9,1.018636]
[1721334762709,2.2841,3413.1,3412.8,3.0]
[1721334762910,2.2841,3413.1,3412.9,1.01863642]
[1721334763105,0.842,3413.2,3412.8,3.0]
[1721334763424,0.45906455,3413.1,3412.9,2.54655563]
[1721334763624,0.45906455,3413.1,3413.0,1.01862861]
[1721334764536,0.45906455,3413.1,3412.8,3.0]
[1721334764735,0.45906455,3413.1,3412.9,1.01862655]
[1721334764935,0.45906455,3413.1,3412.7,0.61331205]
[1721334765133,0.45906455,3413.1,3412.8,2.5465876]
[1721334765355,0.45906455,3413.1,3412.7,0.61331205]
[1721334765356,0.45906455,3413.1,3412.9,1.01863504]
[1721334765641,0.45906455,3413.1,3412.7,0.61331205]
[1721334766144,0.45906455,3413.1,3412.8,2.546583]
[1721334766320,0.45906455,3413.1,3412.9,1.0186332]
[1721334766520,0.45906455,3413.1,3412.7,0.61331205]
[1721334766725,0.45906455,3413.1,3412.8,2.54659263]
[1721334767031,0.45906455,3413.1,3412.9,1.01863705]
[1721334767231,0.45906455,3413.1,3412.7,0.61331205]
[1721334767433,0.45906455,3413.1,3412.8,2.54659667]
[1721334767636,0.45906455,3413.1,3412.9,1.01863867]
[1721334767861,0.45906455,3413.1,3412.7,0.61331205]
[1721334768026,0.45906455,3413.1,3412.8,2.5465932]
[1721334768228,0.45906455,3413.1,3412.9,1.01863728]
[1721334768434,0.45906455,3413.1,3412.7,0.61331205]
[1721334768626,0.45906455,3413.1,3412.8,2.5466356]
[1721334768827,0.45906455,3413.1,3412.9,1.01865728]
[1721334769036,0.45906455,3413.1,3412.6,3.61331205]
[1721334769246,0.45906455,3413.1,3412.7,3.15995553]
[1721334769427,0.45906455,3413.1,3412.8,2.54664348]
[1721334769763,0.45906455,3413.1,3412.9,2.54660524]
[1721334769915,0.45906455,3413.1,3413.0,2.54655469]
[1721334770423,0.45906455,3413.1,3413.0,1.01865739]
[1721334770622,0.45906455,3413.1,3413.0,2.54654473]
[1721334771746,0.45906455,3413.1,3413.0,1.01865739]
[1721334772041,0.45906455,3413.1,3413.0,2.54649968]
[1721334772230,0.45906455,3413.1,3413.0,1.01859987]
[1721334774829,0.45906455,3413.1,3413.0,1.018624]
[1721334775049,0.45906455,3413.1,3412.9,2.93]
[1721334775229,0.45906455,3413.1,3412.7,5.83746205]
[1721334775423,0.45906455,3413.1,3412.8,5.54659656]
[1721334775624,0.45906455,3413.1,3412.9,2.546598]
[1721334775850,0.45906455,3413.1,3412.8,3.0]
[1721334775851,0.45906455,3413.1,3412.8,5.93014]
[1721334776153,0.45906455,3413.1,3412.9,2.54658472]
[1721334776332,0.45906455,3413.1,3412.8,5.93014]
[1721334776650,0.45906455,3413.1,3412.9,2.54659271]
[1721334776822,0.45906455,3413.1,3412.8,5.93014]
[1721334777017,0.45906455,3413.1,3412.9,2.54659256]
[1721334777253,0.45906455,3413.1,3412.8,5.93014]
[1721334777458,0.45906455,3413.1,3412.9,2.54659335]
[1721334777620,0.45906455,3413.1,3412.8,5.93014]
[1721334777822,0.45906455,3413.1,3412.9,2.54659332]
[1721334778117,0.45906455,3413.1,3412.8,5.93014]
[1721334778354,3.1194,3413.4,3412.8,5.93014]
[1721334778529,3.1194,3413.4,3412.9,2.54659493]
[1721334778734,3.1194,3413.4,3412.8,5.93014]
[1721334778933,3.1194,3413.4,3412.9,2.54658531]
[1721334779255,3.724286,3413.4,3412.8,5.93014]
[1721334779554,3.724286,3413.4,3412.9,2.54658518]
[1721334779752,0.842,3413.2,3412.8,3.0]
[1721334779961,0.842,3413.2,3412.9,1.01866231]
[1721334780254,0.842,3413.0,3412.6,0.61331205]
[1721334780552,0.842,3413.0,3412.7,2.54668855]
[1721334780748,0.842,3413.0,3412.8,5.54668855]
[1721334780953,3.2862,3413.0,3412.9,1.01867542]
[1721334781168,3.2862,3413.0,3412.6,0.61331205]
[1721334781336,3.2862,3413.0,3412.7,2.5467577]
[1721334781536,3.2862,3413.0,3412.8,3.0]
[1721334781762,3.2862,3413.0,3412.5,0.61331205]
[1721334782059,3.2862,3413.0,3412.6,2.54682148]
[1721334782362,3.2862,3413.0,3412.7,2.54676883]
[1721334782523,3.2862,3413.0,3412.8,4.01872859]
[1721334782724,3.907801,3413.0,3412.6,0.61331205]
[1721334782925,0.842,3412.8,3412.7,2.54670487]
[1721334783158,3.2862,3413.0,3412.7,5.54670487]
[1721334783360,3.2862,3413.0,3412.5,0.61331205]
[1721334783660,3.2862,3413.0,3412.6,2.54680543]
[1721334783830,3.2862,3413.0,3412.7,5.54680543]
[1721334784026,3.2862,3413.0,3412.8,3.0]
[1721334784224,3.2862,3413.0,3412.5,0.61331205]
[1721334784533,3.2862,3413.0,3412.6,1.01872268]
[1721334784738,3.2862,3413.0,3412.7,2.54680671]
[1721334784934,3.2862,3413.0,3412.8,3.0]
[1721334785172,3.2862,3413.0,3412.5,3.61331205]
[1721334785339,3.2862,3413.0,3412.6,2.54680528]
[1721334785526,3.2862,3413.0,3412.7,5.54680528]
[1721334785723,3.2862,3413.0,3412.5,3.61331205]
[1721334786034,3.2862,3413.0,3412.6,2.54681263]
[1721334786261,3.2862,3413.0,3412.7,2.54681263]
[1721334786427,3.2862,3413.0,3412.8,3.0]
[1721334786644,3.2862,3413.0,3412.6,3.0]
[1721334786848,3.2862,3413.0,3412.7,1.01872453]
[1721334787050,3.2862,3413.0,3412.5,3.61331205]
[1721334787252,3.2862,3413.0,3412.6,2.54683315]
[1721334787493,3.2862,3413.0,3412.7,4.01873326]
[1721334787748,3.2862,3413.0,3412.5,3.61331205]
[1721334787948,3.2862,3413.0,3412.6,2.5468041]
[1721334788147,3.2862,3413.0,3412.7,4.01872164]
[1721334788448,3.2862,3413.0,3412.8,3.0]
[1721334788657,3.2862,3413.0,3412.5,3.61331205]
[1721334788955,3.2862,3413.0,3412.6,2.5468046]
[1721334789189,3.2862,3413.0,3412.7,4.01872184]
[1721334789344,3.2862,3413.0,3412.5,3.61331205]
[1721334789545,3.2862,3413.0,3412.6,2.54680432]
[1721334789778,3.2862,3413.0,3412.7,4.01872173]
[1721334789949,3.2862,3413.0,3412.8,3.0]
[1721334790150,3.2862,3413.0,3412.5,3.61331205]
[1721334790350,3.2862,3413.0,3412.6,2.54682211]
[1721334790575,3.2862,3413.0,3412.7,4.01872898]
[1721334790775,3.2862,3413.0,3412.5,3.61331205]
[1721334791078,3.2862,3413.0,3412.6,2.54682258]
[1721334791279,3.2862,3413.0,3412.7,4.01872903]
[1721334791479,3.2862,3413.0,3412.8,3.0]
[1721334791778,3.2862,3413.0,3412.5,3.61331205]
[1721334792011,3.2862,3413.0,3412.6,2.54682218]
[1721334792215,3.2862,3413.0,3412.7,4.01872887]
[1721334792389,3.2862,3413.0,3412.5,3.61331205]
[1721334792588,3.2862,3413.0,3412.8,3.0]
[1721334792878,2.93031,3412.6,3412.3,7.98331205]
[1721334793101,3.2217,3412.4,3412.3,7.37]
[1721334793303,3.2217,3412.4,3411.8,3.07251205]
[1721334793832,3.2217,3412.4,3411.9,2.54730831]
[1721334793998,2.3797,3412.4,3411.9,0.61331205]
[1721334794200,2.3797,3412.4,3412.0,2.5471718]
[1721334794426,0.842,3412.6,3412.1,1.01886872]
[1721334794596,0.842,3412.6,3412.2,1.01886872]
[1721334794800,0.842,3412.6,3412.0,3.61331205]
[1721334795028,0.842,3412.6,3412.1,2.54707328]
[1721334795192,0.842,3412.6,3412.2,1.01882931]
[1721334795394,0.842,3412.6,3412.0,3.0]
[1721334795602,0.842,3412.6,3412.1,1.01885924]
[1721334795804,0.842,3412.6,3412.0,3.0]
[1721334796003,0.842,3412.6,3412.1,1.01885893]
[1721334796352,0.842,3412.6,3412.0,3.0]
[1721334796554,0.842,3412.6,3412.1,1.01885893]
[1721334796837,0.842,3412.6,3412.0,3.0]
[1721334797039,2.4515,3413.1,3412.2,5.32986]
[1721334797249,0.842,3413.0,3412.4,2.93047]
[1721334797637,0.842,3413.0,3412.5,1.01873835]
[1721334797800,0.842,3413.0,3412.4,2.93047]
[1721334798000,0.842,3413.0,3412.5,1.01871315]
[1721334798306,0.842,3413.0,3412.4,2.93047]
[1721334798516,0.842,3413.0,3412.5,2.54675127]
[1721334798720,0.842,3413.1,3412.4,2.93042]
[1721334798923,0.842,3412.9,3412.5,1.0186952]
[1721334799139,0.842,3413.1,3412.4,2.93042]
[1721334799347,0.842,3413.1,3412.5,1.01869099]
[1721334799552,0.842,3413.1,3412.4,2.93042]
[1721334799844,0.842,3412.9,3412.5,2.54672392]
[1721334800055,0.842,3413.1,3412.4,3.54373205]
[1721334800212,0.842,3413.1,3412.5,2.54669088]
[1721334800542,0.842,3413.1,3412.5,2.93038]
[1721334800745,0.842,3413.1,3412.6,1.01868394]
[1721334800946,2.4515,3413.3,3412.5,2.93038]
[1721334800947,0.842,3412.9,3412.5,2.93038]
[1721334801152,0.842,3413.1,3412.4,2.93042]
[1721334801307,0.842,3412.9,3412.5,4.01873761]
[1721334801505,0.842,3412.9,3412.5,3.0]
[1721334804118,0.842,3412.9,3412.3,3.0]
[1721334804330,0.842,3412.9,3412.4,2.54687308]
[1721334804520,0.842,3412.9,3412.5,3.0]
[1721334804727,0.842,3412.9,3412.3,5.93057]
[1721334804928,0.842,3412.7,3412.4,2.54689127]
[1721334805125,0.842,3412.9,3412.5,4.0187677]
[1721334805452,0.842,3412.9,3412.3,3.61331205]
[1721334805687,0.842,3412.9,3412.4,2.54685628]
[1721334805890,0.842,3412.9,3412.5,3.0]
[1721334805891,0.842,3412.7,3412.5,3.0]
[1721334806094,3.3323,3412.9,3412.5,3.0]
[1721334806296,3.3323,3412.9,3412.3,3.0]
[1721334806652,3.3323,3412.9,3412.4,2.54692388]
[1721334806849,0.842,3412.7,3412.5,3.0]
[1721334807084,3.3323,3412.9,3412.3,3.0]
[1721334807391,3.2823,3412.9,3412.4,2.54688586]
[1721334807554,3.2823,3412.9,3412.5,3.0]
[1721334807759,3.2823,3412.9,3412.3,3.0]
[1721334807956,0.842,3412.7,3412.4,1.0187668]
[1721334808171,3.2823,3412.9,3412.3,3.0]
[1721334808384,3.2823,3412.9,3412.4,1.01877826]
[1721334808557,2.92986,3413.2,3412.3,5.93056]
[1721334808761,2.92986,3413.2,3412.4,2.54683766]
[1721334808762,0.842,3412.9,3412.4,2.54683766]
[1721334808961,2.92986,3413.2,3412.5,5.54683766]
[1721334809193,3.77186,3413.2,3412.6,1.01876594]
[1721334809401,3.77186,3413.2,3412.5,3.0]
[1721334809811,0.842,3413.0,3412.6,1.01870231]
[1721334809964,0.842,3413.0,3412.5,3.0]
[1721334810561,0.842,3413.0,3412.6,1.0187282]
[1721334810765,0.842,3413.0,3412.5,3.0]
[1721334811013,0.842,3413.0,3412.6,1.01871371]
[1721334811218,0.842,3413.0,3412.5,3.0]
[1721334811906,0.842,3412.8,3412.5,3.0]
[1721334812206,2.4237,3413.1,3412.5,3.0]
[1721334812207,0.842,3413.0,3412.5,3.0]
[1721334812875,0.842,3412.8,3412.5,3.0]
[1721334813080,0.842,3413.0,3412.5,3.0]
[1721334813477,0.842,3413.0,3412.6,1.01872998]
[1721334813678,0.842,3413.0,3412.5,3.0]
[1721334813882,0.842,3413.0,3412.6,1.01872099]
[1721334814064,0.842,3413.0,3412.5,3.0]
[1721334814411,0.842,3413.0,3412.6,1.01871933]
[1721334814562,0.842,3413.0,3412.5,3.0]
[1721334814763,0.842,3413.0,3412.6,1.01872414]
[1721334814962,0.842,3413.0,3412.5,3.0]
[1721334815475,0.842,3413.0,3412.6,1.01873301]
[1721334815738,0.842,3413.0,3412.5,3.0]
[1721334816178,0.842,3413.0,3412.6,1.01872443]